Cogmind - Beta 13 @@@ ROGUE MODE // 2024.04.09 @ 11:06:55 Player: MO-55 Result: Destroyed by 92-IUL(R) with Subdweller Machine Gun Performance ------------- Evolutions (0) 0 Regions Visited (2) 400 Robots Destroyed (16) 80 Value Destroyed (481) 481 Prototype IDs (2) 40 Alien Tech Used (0) 0 Bonus (0) 0 TOTAL SCORE: 1001 Bonus ------- None Cogmind --------- Core Integrity 0/250 Matter 280/300 Energy 250/250 System Corruption 0% Temperature Cool (0) Movement Rolling (107) Ox1 Location -10/Subcaves Parts ------- > --- POWER (1) -------- Ion Engine > --- PROPULSION (2) --- Wheel Subdweller Monowheel > --- UTILITY (2) ------ Heat Sink High-capacity Storage Unit > --- WEAPON (2) ------- Hammer Hammer > --- INVENTORY (20) --- Light Nuclear Core Spiked Treads Aluminum Leg Aluminum Leg Aluminum Leg Aluminum Leg Aluminum Leg Wheel Wheel Improved Heat Sink Huge Storage Unit High-capacity Matter Pod (200) Improved Terrain Scanner Medium Laser Particle Gun Assault Rifle Subdweller Machine Gun Light Cannon Grenade Launcher Peak State ------------ > --- POWER ------------ Ion Engine > --- PROPULSION ------- Wheel Wheel > --- UTILITY ---------- High-capacity Storage Unit Improved Terrain Scanner > --- WEAPON ----------- Particle Gun Light Cannon > --- INVENTORY -------- Ion Engine Light Nuclear Core Aluminum Leg Aluminum Leg Aluminum Leg Aluminum Leg Aluminum Leg Wheel Heat Sink Improved Heat Sink Huge Storage Unit High-capacity Matter Pod Medium Laser Assault Rifle Grenade Launcher Hammer Hammer [Rating: 12] Favorites ----------- Power Ion Engine Engine Ion Engine Propulsion Wheel Treads Spiked Treads Leg Aluminum Leg Wheel Wheel Utility Improved Terrain Scanner Device Improved Terrain Scanner Storage High-capacity Storage Unit Weapon Light Cannon Energy Gun Particle Gun Ballistic Gun Assault Rifle Ballistic Cannon Light Cannon Impact Weapon Hammer Build | -11 -10 -10 ------- Run | Yrd Mat Sub Slots Evolved . | . . . Power . | . . . Propulsion . | . . . Utility . | . . . Weapon . | . . . Parts Attached 28 | 7 12 9 Power 2 | 1 . 1 Engine 2 | 1 . 1 Core . | . . . Reactor . | . . . Propulsion 9 | 3 2 4 Treads 2 | . . 2 Leg 2 | 2 . . Wheel 5 | 1 2 2 Hover . | . . . Flight . | . . . Utility 11 | 1 8 2 Device 6 | . 4 2 Storage 5 | 1 4 . Processor . | . . . Hackware . | . . . Protection . | . . . Artifact . | . . . Weapon 6 | 2 2 2 Energy Gun 2 | 1 1 . Energy Cannon . | . . . Ballistic Gun 1 | 1 . . Ballistic Cannon 1 | . 1 . Launcher . | . . . Special Weapon . | . . . Impact Weapon 2 | . . 2 Slashing Weapon . | . . . Piercing Weapon . | . . . Special Melee Weapon . | . . . Unidentified Prototypes . | . . . Parts Lost 3 | . . 3 Power 1 | . . 1 Propulsion 2 | . . 2 Utility . | . . . Weapon . | . . . Highest Loss Streak 3 | . . 3 To Critical Strikes . | . . . Average Slot Usage (%) 99 | . 100 98 Engine 14 | . 14 14 Leg 4 | . 4 . Wheel 23 | . 23 23 Device 14 | . 14 14 Storage 14 | . 14 14 Energy Gun 13 | . 14 3 Ballistic Gun 3 | . 4 . Ballistic Cannon 9 | . 9 3 Impact Weapon 1 | . . 21 Naked Turns . | . . . Heaviest Build 92 | 14 92 52 Greatest Support 30 | 20 20 30 Greatest Overweight (x) 4 | . 4 4 Average Overweight (x) 1 | . 1 2 Largest Inventory Capacity 25 | 8 25 20 Average Capacity 16 | 7 16 20 Most Carried 20 | 5 19 20 Average Carried 13 | 2 12 19 Final Capacity 20 | 8 20 20 Final Carried 19 | 4 19 19 Class Distribution -------------------- 100% | Mutant Dominant Class ---------------- Mutant | -10/Materials Mutant | -10/Subcaves Resources | -11 -10 -10 ----------- Run | Yrd Mat Sub Matter Collected 921 | 258 572 91 Remotely . | . . . Salvage Created 701 | 14 576 111 Parts 34 | 3 29 2 Haulers Intercepted 1 | . 1 . Recyclers Shooed 1 | . 1 . Parts Field Recycled . | . . . Retrieved Matter . | . . . Parts Self-Destructed . | . . . Prevented . | . . . Kills | -11 -10 -10 ------- Run | Yrd Mat Sub Combat Hostiles Destroyed 12 | . 10 2 Melee 1 | . . 1 Guns 5 | . 5 . Cannons 5 | . 5 . Classes Destroyed 5 | 1 3 1 Tunneler 2 | 1 1 . Hauler 1 | . 1 . Recycler 1 | . 1 . Grunt 10 | . 10 . Subdweller 2 | . . 2 Best Kill Streak 3 | 1 3 2 Combat Bots Only 3 | . 3 2 Max Kills in Single Turn 1 | 1 1 1 Gunslinging . | . . . Exploded . | . . . Melee 1 | . . 1 Uniques/NPCs Destroyed . | . . . Combat | -11 -10 -10 -------- Run | Yrd Mat Sub Hostile Shots Fired 67 | . 32 35 Missed 23 | . 13 10 Damage Taken 740 | . 222 518 Core 251 | . 70 181 Absorbed by Shields . | . . . Core Remaining (%) 100 | 100 . . Volleys Fired 35 | 1 34 . Largest 2 | 2 2 . Hottest 100 | 70 100 . Shots Fired 68 | 2 66 . Gun 47 | 2 45 . Cannon 21 | . 21 . Launcher . | . . . Special . | . . . Kinetic 35 | 1 34 . Thermal 33 | 1 32 . Explosive . | . . . Electromagnetic . | . . . Robot Hit Streak 7 | 1 7 . Robot Miss Streak 5 | 1 5 . Penetration Max . | . . . Secondary Targets . | . . . Shots Hit Robots 50 | 1 36 13 Core Hits 26 | 1 22 3 Critical Kills 2 | . 1 1 Critical Parts Destroyed 3 | . . 3 Critical Strikes 5 | . 1 4 Destroy 1 | . 1 . Smash 4 | . . 4 Melee Attacks 15 | . . 15 Impact 15 | . . 15 Slashing . | . . . Piercing . | . . . Sneak Attacks . | . . . Combat Hostiles . | . . . Follow-up Attacks 2 | . . 2 Damage Inflicted 863 | 13 534 316 Guns 382 | 13 369 . Cannons 165 | . 165 . Explosions . | . . . Melee 316 | . . 316 Ramming . | . . . Kinetic 268 | 13 255 . Thermal 279 | . 279 . Explosive . | . . . Electromagnetic . | . . . Impact 316 | . . 316 Slashing . | . . . Piercing . | . . . Highest Corruption . | . . . Average Corruption . | . . . Corruption Purged . | . . . Corruption Blocked . | . . . Overload Shots . | . . . Overflow Damage 77 | . . 77 Projectiles . | . . . Explosions . | . . . Melee 77 | . . 77 Knockbacks 5 | . 4 1 Impact 1 | . . 1 Kinetic 2 | . 2 . Secondary 2 | . 2 . Self-Inflicted Damage . | . . . Shots . | . . . Rammed . | . . . Targets Rammed . | . . . Kicked . | . . . Crushed . | . . . Highest Temperature 99 | 9 99 . Average Temperature 36 | 6 37 . Received Heat Transfer 150 | . 132 18 Siege Activations . | . . . Robots Corrupted . | . . . Combat Hostiles . | . . . Parts Fried 2 | . . 2 Impact Corruptions 3 | . . 3 Robots Melted . | . . . Combat Hostiles . | . . . Parts Melted . | . . . Heat Transferred 740 | . 740 . Parts Sabotaged . | . . . Parts Stolen . | . . . Parts Stripped . | . . . Power Chain Reactions . | . . . Alert | -11 -10 -10 ------- Run | Yrd Mat Sub Peak Influence 277 | 5 277 . Initial 3 | . 3 . Average 131 | . 136 . Maximum Alert Level 1 | . 1 . Low Security (%) 68 | 100 67 . Level 1 31 | . 32 . Level 2 . | . . . Level 3 . | . . . Level 4 . | . . . Level 5 . | . . . High Security . | . . . Max Security . | . . . Squads Dispatched 3 | . 3 . Investigation 1 | . 1 . Extermination . | . . . Reinforcement 2 | . 2 . Assault . | . . . Garrison . | . . . Intercept . | . . . Searches Triggered . | . . . Construction Impeded . | . . . Haulers Reinforced . | . . . Active Scanning Responses . | . . . Cargo Convoy Interrupts . | . . . Stealth | -11 -10 -10 --------- Run | Yrd Mat Sub Distress Signals 3 | . 3 . Communications Jammed . | . . . Distress Signals . | . . . Times Spotted 29 | . 25 4 Peak Tracking Total 5 | . 5 2 Tactical Retreats 3 | . 3 . Traps | -11 -10 -10 ------- Run | Yrd Mat Sub Traps Triggered 1 | . 1 . Indirectly . | . . . Trap Hack Attempts . | . . . Triggered . | . . . Disarmed . | . . . Reprogrammed . | . . . Reused . | . . . Traps Extracted . | . . . Installed . | . . . Triggered . | . . . Machines | -11 -10 -10 ---------- Run | Yrd Mat Sub Machines Disabled . | . . . Max in Single Turn . | . . . Machines Repaired . | . . . Machines Dismantled . | . . . Machines Sabotaged . | . . . Overloaded Fab Kills . | . . . Hacking | -11 -10 -10 --------- Run | Yrd Mat Sub Machines Accessed 6 | . 6 . Terminals 6 | . 6 . Fabricators . | . . . Repair Stations . | . . . Recycling Units . | . . . Scanalyzers . | . . . Garrison Access . | . . . Total Hacks 14 | . 14 . Successful 7 | . 7 . Failed 7 | . 7 . Catastrophic 1 | . 1 . Database Lockouts . | . . . Manual 4 | . 4 . Terminals 14 | . 14 . Fabricators . | . . . Repair Stations . | . . . Recycling Units . | . . . Scanalyzers . | . . . Garrison Access . | . . . Terminal Hacks 6 | . 6 . Part Schematic 2 | . 2 . Prototype ID Bank 1 | . 1 . Locate Traps 2 | . 2 . Registered Components 1 | . 1 . Fabricator Hacks . | . . . Repair Station Hacks . | . . . Recycling Unit Hacks . | . . . Scanalyzer . | . . . Garrison Access Hacks . | . . . Unauthorized Hacks 1 | . 1 . Terminals 1 | . 1 . Botnet 1 | . 1 . Fabricators . | . . . Repair Stations . | . . . Recycling Units . | . . . Scanalyzers . | . . . Garrison Access . | . . . Data Cores Recovered . | . . . Used . | . . . Hacking Detections 5 | . 5 . Full Trace Events . | . . . Feedback Events . | . . . Feedback Blocked . | . . . Robot Schematics Acquired . | . . . Robots Built . | . . . Authchips . | . . . Time . | . . . Total Robot Build Rating . | . . . Part Schematics Acquired 2 | . 2 . Parts Built . | . . . Authchips . | . . . Time . | . . . Total Part Build Rating . | . . . Parts Repaired . | . . . Time . | . . . Parts Recycled . | . . . Recycled Matter . | . . . Retrieved Matter . | . . . Retrieved Components . | . . . Parts Scanalyzed . | . . . Part Schematics Acquired . | . . . Parts Damaged . | . . . Bothacking | -11 -10 -10 ------------ Run | Yrd Mat Sub Used RIF Installer . | . . . Robots Hacked . | . . . Non-combat . | . . . Combat . | . . . Robot Hacks Applied . | . . . Relay Couplers Released . | . . . Fabnet Peak Effective % . | . . . Robots Rewired . | . . . Allies Hacked . | . . . Hacks Repelled . | . . . Allies | -11 -10 -10 -------- Run | Yrd Mat Sub Total Allies . | . . . Largest Group . | . . . Highest-Rated Group . | . . . Highest-Rated Ally . | . . . Total Orders . | . . . Ally Attacks . | . . . Total Damage . | . . . Kills . | . . . Allies Corrupted . | . . . Allies Melted . | . . . Intel | -11 -10 -10 ------- Run | Yrd Mat Sub Robot Analysis Total . | . . . Derelict Logs Recovered . | . . . Drone Launches . | . . . Drone Recoveries . | . . . Exploration | -11 -10 -10 ------------- Run | Yrd Mat Sub Turns Passed 1797 | 61 1574 162 Spaces Moved 826 | 43 717 66 Core 11 | 11 . . Treads 1 | . . 1 Legs 146 | 26 120 . Wheels 668 | 6 597 65 Hover . | . . . Flight . | . . . Fastest Speed 50 | 50 95 107 Average Speed 104 | 96 102 125 Slowest Speed 360 | 120 140 360 Overloaded Moves . | . . . Propulsion Burnouts . | . . . Robots Hopped . | . . . Cave-ins Triggered . | . . . Exploration Rate (%) 36 | 3 99 6 Regions Visited 2 Branch Regions 1 Pre-discovered Areas . | . . . Known Exits Taken . | . . . Unknown Exits Taken 2 | 1 1 . Scrap Searched 1 | . . 1 Spaces Dug . | . . . Terrain Destroyed . | . . . Melee . | . . . Projectile . | . . . AOE . | . . . Terrain Rammed . | . . . Walls Destroyed . | . . . Machines Disabled . | . . . Actions | -11 -10 -10 --------- Run | Yrd Mat Sub Total 1663 | 58 1486 119 Wait 728 | . 700 28 Move 824 | 42 716 66 Hop . | . . . Pick Up 29 | 7 20 2 Fast Attach 5 | 4 . 1 Attach 6 | 2 1 3 Detach 1 | . . 1 Swap 17 | 1 11 5 Drop 5 | 1 4 . Fire 35 | 1 34 . Melee 13 | . . 13 Ram . | . . . Kick . | . . . Crush . | . . . Escape Stasis . | . . . Rewire . | . . . Trap . | . . . Miscellaneous . | . . . Route ------- -11/Scrapyard -10/Materials (discovered 6 exits: [*Mat x3] / [*Min x2] / [*Sub]) -10/Subcaves History --------- Turn | Location | Event 7 | -11/Scrapyard | Discovered new exit (range 15) 62 | -11/Scrapyard | Entered Materials 311 | -10/Materials | Build established: Mutant 315 | -10/Materials | Discovered new exit (range 3) 637 | -10/Materials | Discovered new exit (range 10) 725 | -10/Materials | Discovered new exit (range 9) 735 | -10/Materials | Discovered new exit (range 11) 785 | -10/Materials | Discovered new exit (range 16) 1550 | -10/Materials | Discovered new exit (range 5) 1636 | -10/Materials | Entered Subcaves 1713 | -10/Subcaves | Core integrity fell below 50% 1758 | -10/Subcaves | Lost 3 parts (1p2n) 1794 | -10/Subcaves | Core integrity fell below 20% 1798 | -10/Subcaves | Destroyed by 92-IUL(R) with Subdweller Machine Gun Last Messages --------------- 01719_ N3-SPQ(R) suffers critical hit (Smash). 01719_ Destroyed Sub. Machine Gun. 01719_ N3-SPQ(R) system corrupted by crushing effect. 01720_ N3-SPQ(R) system terminally corrupted. 01720_ Sub. Power Source fried. 01720_ Sub. Monowheel fried. 01723_ Subatomizers dissect the Sub. Power Source. 01723_ VM-B31(R) knocked back. 01727_ Wheel destroyed. 01729_ VM-B31(R) suffers critical hit (Smash). 01729_ VM-B31(R) destroyed. 01733_ Subatomizers dissect the Sub. Power Source, destroying it. 01735_ Acquired Sub. Monowheel. 01736_ Acquired 57 matter. 01739_ Acquired Sub. Machine Gun. 01742_ Acquired 10 matter. 01791_ 92-IUL(R) suffers critical hit (Smash). 01791_ Destroyed Sub. Optics. 01791_ 92-IUL(R) system corrupted by crushing effect. 01795_ Hammer follow-up attack on 92-IUL(R). Map ----- +----------------------------------------------------+ | ???????????????# % % ?????? | | ???????????????## ### ?????? | | ???????????????## #### % #?????????? | | ???????????????# ## #?????????? | | ??????????#????# #### ?????? | | ???????????????## #?# # ?????? | | ??????#?????????# ### #? ?????? | | ???????????????## ### ##??% ??????? | | ??????#??????#?# # #???? ???????? | | ???????????????## # ####?#??? ???????? | | ??????????????##& # #?? ##??? ????????? | | ??????????????# #?# #???? ????????? | | ??????????????# ## ##??? ????????? | | ??????????????# # # ## #???????? | | ??????????????#% #### #??????? | | ??????????????#& #??# #???????????? | | ??????????????####??# ##???????????? | | ????????????#???????# ## # ???????? | | ???????????????????## #####? ??????? | | ???????????????????# #??????# ???????? | | ???????????????????# ####????????? ???????? | | ???????????????????# #?????????????????????? | | ???????????????????# ##????????????????????? | | ??????????????????## #?????? #???????????? | | ??????????????????# # #????????????? | | ??????????????????##@R #????????????? | | ?????????????????? ##### ##????????????? | | ???????????????? R##???????????????????? | | ??????????????# ##?#??????????????????? | | ??????????????# ##?????????????????????? | | ??????????????## #??????????????????????? | | ???????????????#### ??????????????????????? | | ??????????????????# ??????????????????????? | | ?????????????????? ??????????????????????? | | ?????????????????? #??????????????????????? | | ????????????????? ???????????????????????? | | ????????????????? ???????????????????????? | | ????????????????? ???????????????????????? | | ????????????????? ???????????????????????? | | ????????????????? ???????????????????????? | | ?????????????????? ???????????????????????? | | ????????????????????????????????????????????? | | ????????????????????????????????????????????? | | ????????????????????????????????????????????? | | ????????????????????????????????????????????? | | ????????????????????????????????????????????? | | ????????????????????????????????????????????? | | ????????????????????????????????????????????? | | ????????????????????????????????????????????? | | ????????????????????????????????????????????? | +----------------------------------------------------+ Best States ------------- Heat Dissipation 35 Energy Generation 10 Energy Capacity 250 Matter Stores 300 Matter Capacity 300 Sight Range 16 Terrain Scan Range 16 Terrain Scan Density 10 Evasion (%) 55 Item Schematics ----------------- Hcp. Storage Unit | -10/Materials | Hacked Huge Storage Unit | -10/Materials | Hacked Robot Schematics ------------------ None Fabricated ------------ Nothing Alien Tech Used ----------------- None Achievements -------------- None Challenges ------------ None Game ------ Seed RiotDeuteriumAutocannon Manual? 0 Play Time 00:15:22 Cumulative 68.7 hours Start 2024.04.09 @ 10:53:30 End 2024.04.09 @ 11:06:55 Sessions 1 Manual Loads 0 Difficulty Rogue Special Mode None Game No. 59 Rogue 59 Adventurer 0 Explorer 0 Win Type - Total 1 Types 1/0/0/0/0/0/0/0/0 Lore% 36 Gallery% 49 Achievement% 43 Wizard Run 0 Options --------- Layout 0 ASCII 0 Keyboard 0 Movement Mouse Keybinds 0 Fullscreen 2 Font 24/Smallcaps Map View 76x50 Zoom Use 0% Tactical HUD 1 Map Filters NONE Filters NONE Steam 1 RUN: e193a259-1b18-4373-8fcb-b61ffcb08077